Cogmind - Beta 15 @@@ ROGUE MODE // 2025.05.15 @ 00:39:27 Player: Windjigo Result: Self-destructed Performance ------------- Evolutions (2) 1000 Regions Visited (3) 600 Robots Destroyed (43) 215 Value Destroyed (1055) 1055 Prototype IDs (2) 40 Alien Tech Used (0) 0 Bonus (0) 0 TOTAL SCORE: 2910 Bonus ------- None Cogmind --------- Core Integrity 171/550 Matter 103/300 Energy 15/100 System Corruption 7% Temperature Critical (731) Movement Core (250) Ox4 Location -8/Materials Parts ------- > --- POWER (1) -------- (None) > --- PROPULSION (3) --- (None) > --- UTILITY (4) ------ Medium Storage Unit Improved Signal Interpreter Hacking Suite > --- WEAPON (3) ------- EMP Blaster > --- INVENTORY (10) --- Improved Heat Sink Advanced Weight Redist. System Improved Sensor Array Advanced ECM Suite Subdweller Beam Cannon Plasma Cannon Plasma Cannon Mining Laser Peak State ------------ > --- POWER ------------ Nuclear Core > --- PROPULSION ------- Improved Hover Unit Improved Hover Unit Improved Hover Unit > --- UTILITY ---------- Medium Storage Unit Improved Sensor Array Hardened Medium Armor Plating Hacking Suite > --- WEAPON ----------- Plasma Cannon Plasma Cannon Enhanced Autogun > --- INVENTORY -------- Improved Heat Sink Advanced Weight Redist. System Advanced ECM Suite Light Armor Plating Subdweller Beam Cannon Enhanced Autogun Flak Cannon EMP Blaster EMP Blaster Mining Laser [Rating: 33] Favorites ----------- Power Ion Engine Engine Ion Engine Power Core Nuclear Core Propulsion Improved Hover Unit Leg Aluminum Leg Wheel Armored Wheel Hover Unit Improved Hover Unit Utility Medium Storage Unit Device Sensor Array Storage Medium Storage Unit Processor Targeting Computer Hackware Hacking Suite Protection Light Armor Plating Weapon Shotgun Energy Gun Small Laser Energy Cannon Subdweller Beam Cannon Ballistic Gun Shotgun Ballistic Cannon Flak Cannon Launcher EMP Blaster Special Weapon Mining Laser Impact Weapon Maul Build | -11 -10 -10 -8 ------- Run | Yrd Mat Sub Mat Slots Evolved 4 | . . . 4 Power . | . . . . Propulsion 1 | . . . 1 Utility 2 | . . . 2 Weapon 1 | . . . 1 Parts Attached 47 | 6 11 4 26 Power 5 | 1 1 . 3 Engine 3 | 1 1 . 1 Core 2 | . . . 2 Reactor . | . . . . Propulsion 16 | 2 6 1 7 Treads . | . . . . Leg 1 | . . . 1 Wheel 7 | 2 4 1 . Hover 8 | . 2 . 6 Flight . | . . . . Utility 9 | 1 2 . 6 Device 2 | . . . 2 Storage 2 | 1 1 . . Processor 2 | . 1 . 1 Hackware 1 | . . . 1 Protection 2 | . . . 2 Artifact . | . . . . Weapon 17 | 2 2 3 10 Energy Gun 3 | 1 . 1 1 Energy Cannon 4 | . 1 1 2 Ballistic Gun 5 | 1 1 . 3 Ballistic Cannon 1 | . . . 1 Launcher 2 | . . . 2 Special Weapon 1 | . . . 1 Impact Weapon 1 | . . 1 . Slashing Weapon . | . . . . Piercing Weapon . | . . . . Special Melee Weapon . | . . . . Unidentified Prototypes 2 | . . . 2 Parts Lost 16 | . 2 3 11 Power 2 | . 1 . 1 Propulsion 6 | . 1 1 4 Utility 2 | . . . 2 Weapon 6 | . . 2 4 Highest Loss Streak 9 | . 2 2 9 To Critical Strikes . | . . . . Average Backups 8 | 2 7 9 9 Power . | . 1 1 . Propulsion 1 | 1 1 2 . Utility 2 | . 1 3 3 Weapon 3 | . 2 2 4 Tool/Special . | . . . . Unused Backups 8 | . 2 . 6 Power . | . . . . Propulsion 1 | . . . 1 Utility 7 | . 2 . 5 Weapon . | . . . . Tool/Special . | . . . . Average Slot Usage (%) 96 | . 97 97 96 Engine 10 | . 13 14 4 Core 1 | . . . 4 Wheel 15 | . 24 27 1 Hover 10 | . 3 . 22 Device 3 | . . . 8 Storage 12 | . 14 14 9 Processor 9 | . 12 14 3 Hackware 3 | . . . 9 Protection 2 | . . . 5 Energy Gun 1 | . 2 1 1 Energy Cannon 11 | . 11 9 10 Ballistic Gun 13 | . 14 14 11 Peak Build Rating 33 | 6 11 12 33 Average Rating 15 | 5 8 11 24 On Entrance 7 | . 6 11 12 Naked Turns . | . . . . Heaviest Build 42 | 13 21 26 42 Greatest Support 32 | 20 24 32 32 Greatest Overweight (x) 6 | 1 4 2 6 Average Overweight (x) . | . . . 1 Largest Inventory Capacity 10 | 8 10 10 10 Average Capacity 9 | 7 8 10 10 Most Carried 10 | 3 9 10 10 Average Carried 8 | 2 7 9 9 Final Capacity 10 | 8 10 10 10 Final Carried 10 | 3 9 10 8 Class Distribution -------------------- 62% | Mutant 24% | Scavenger-Tank 6% | Gunner 5% | Scavenger-Skirmisher Dominant Class ---------------- Mutant | -10/Materials Mutant | -10/Subcaves Scavenger-Tank | -8/Materials Resources | -11 -10 -10 -8 ----------- Run | Yrd Mat Sub Mat Matter Collected 1018 | 168 343 104 403 Remotely . | . . . . Salvage Created 1748 | 95 680 156 817 Parts 91 | 13 40 6 32 Haulers Intercepted 3 | . 2 . 1 Recyclers Shooed . | . . . . Parts Field Recycled . | . . . . Retrieved Matter . | . . . . Parts Self-Destructed . | . . . . Prevented . | . . . . Kills | -11 -10 -10 -8 ------- Run | Yrd Mat Sub Mat Combat Hostiles Destroyed 22 | . 11 4 7 Melee 1 | . . 1 . Guns 6 | . . 3 3 Cannons 13 | . 11 . 2 AOE 1 | . . . 1 Classes Destroyed 12 | 1 8 2 1 Worker 1 | . 1 . . Builder 1 | . 1 . . Tunneler 5 | 5 . . . Hauler 3 | . 2 . 1 Recycler 4 | . 1 . 3 Operator 2 | . 2 . . Watcher 5 | . 2 . 3 Swarmer 3 | . 3 . . Grunt 12 | . 8 1 3 Sentry 4 | . . 1 3 Hunter 1 | . . . 1 Subdweller 2 | . . 2 . Best Kill Streak 9 | 5 9 2 3 Combat Bots Only 3 | . 3 2 2 Max Kills in Single Turn 1 | 1 1 1 1 Gunslinging . | . . . . Exploded 1 | . . . 1 Melee 1 | . . 1 . Uniques/NPCs Destroyed . | . . . . Combat | -11 -10 -10 -8 -------- Run | Yrd Mat Sub Mat Hostile Shots Fired 173 | . 40 26 107 Missed 34 | . 10 6 18 Hits 139 | . 30 20 89 Projectile 139 | . 30 20 89 Critical Strikes 5 | . 1 . 4 Damage Taken 2353 | . 327 470 1556 Core 546 | . 47 120 379 Absorbed by Shields . | . . . . Core Remaining (%) 66 | 100 . 33 . Volleys Fired 109 | 8 50 12 39 Largest 3 | 2 2 2 3 Hottest 205 | 60 80 79 205 Shots Fired 239 | 16 98 18 107 Gun 147 | 16 51 18 62 Cannon 89 | . 47 . 42 Launcher 2 | . . . 2 Special 1 | . . . 1 Kinetic 130 | 8 49 12 61 Thermal 101 | 8 49 6 38 Explosive . | . . . . Electromagnetic 8 | . . . 8 Robot Hit Streak 16 | 5 7 15 16 Robot Miss Streak 6 | 3 5 1 6 Penetration Max . | . . . . Secondary Targets 1 | . . 1 . Max Gunslinging Chain 1 | . . 1 . Shots Hit Robots 144 | 9 55 20 60 Core Hits 65 | 5 25 8 27 Critical Kills 2 | . . . 2 Critical Parts Destroyed 1 | . . . 1 Critical Strikes 3 | . . . 3 Meltdown 1 | . . . 1 Destroy 2 | . . . 2 Melee Attacks 2 | . . 2 . Impact 2 | . . 2 . Slashing . | . . . . Piercing . | . . . . Sneak Attacks . | . . . . Combat Hostiles . | . . . . Follow-up Attacks . | . . . . Damage Inflicted 2769 | 112 907 350 1400 Guns 1359 | 112 312 278 657 Cannons 1286 | . 595 . 691 Explosions 52 | . . . 52 Melee 72 | . . 72 . Ramming . | . . . . Kinetic 1223 | 48 302 207 666 Thermal 1332 | 64 605 71 592 Explosive . | . . . . Electromagnetic 142 | . . . 142 Impact 72 | . . 72 . Slashing . | . . . . Piercing . | . . . . Highest Corruption 7 | . . . 7 Average Corruption 6 | . . . 6 Corruption Purged . | . . . . Corruption Blocked . | . . . . Effects 3 | . . . 3 Message Errors 1 | . . . 1 Matter Fused 1 | . . . 1 Weapon Failures 1 | . . . 1 Overload Shots . | . . . . Overflow Damage 12 | . 12 . . Projectiles 12 | . 12 . . Explosions . | . . . . Melee . | . . . . Knockbacks . | . . . . Impact . | . . . . Kinetic . | . . . . Secondary . | . . . . Self-Inflicted Damage 2 | . . . 2 Shots 1 | . . . 1 Rammed . | . . . . Targets Rammed . | . . . . Kicked . | . . . . Crushed . | . . . . Highest Temperature 815 | . 252 . 815 Average Temperature 149 | . 60 . 218 Received Heat Transfer 963 | . 147 150 666 Effects 21 | . . . 21 Shutdowns 2 | . . . 2 Interference 7 | . . . 7 Matter Decay 1 | . . . 1 Damage (major) 9 | . . . 9 Damage (core) 2 | . . . 2 Siege Activations . | . . . . Martial Activations . | . . . . Shielding Activations . | . . . . Robots Disrupted . | . . . . Combat Hostiles . | . . . . Robots Corrupted . | . . . . Combat Hostiles . | . . . . Parts Fried . | . . . . Impact Corruptions . | . . . . Robots Melted 1 | . . . 1 Combat Hostiles 1 | . . . 1 Parts Melted 6 | . 1 . 5 Heat Transferred 2513 | 150 1283 162 918 Parts Sabotaged . | . . . . Parts Stolen . | . . . . Parts Stripped . | . . . . Power Chain Reactions . | . . . . Alert | -11 -10 -10 -8 ------- Run | Yrd Mat Sub Mat Maximum Alert Level . | . . . . Low Security (%) 100 | 100 100 . 100 Level 1 . | . . . . Level 2 . | . . . . Level 3 . | . . . . Level 4 . | . . . . Level 5 . | . . . . High Security . | . . . . Max Security . | . . . . Peak Influence 197 | 10 197 . 55 Initial 3 | . 3 . . Average 50 | 2 97 . 14 Influence Increases 757 | 25 383 40 309 Destroy 0b10 Robot/C 400 | . 220 40 140 Destroy 0b10 Robot/NC 105 | 25 45 . 35 Destroy Leader 106 | . 58 . 48 Successful Hack 28 | . 14 . 14 Disable Machine 60 | . 15 . 45 Destroy Structure 13 | . 1 . 12 Partial Spotted 15 | . 15 . . Lose Combat Pursuer 30 | . 15 . 15 Influence Decreases 732 | 20 388 40 284 Entered New Map 2 | . 2 . . Time Decay 485 | 20 216 40 209 Lost Part 95 | . 20 . 75 Purge Threat 150 | . 150 . . Squads Dispatched 5 | . 3 . 2 Investigation 4 | . 2 . 2 Extermination . | . . . . Reinforcement 1 | . 1 . . Assault . | . . . . Garrison . | . . . . Intercept . | . . . . Searches Triggered . | . . . . Construction Impeded . | . . . . Haulers Reinforced . | . . . . Active Scanning Responses . | . . . . Cargo Convoy Interrupts . | . . . . Stealth | -11 -10 -10 -8 --------- Run | Yrd Mat Sub Mat Distress Signals 4 | . 3 . 1 Communications Jammed . | . . . . Distress Signals . | . . . . Times Spotted 41 | . 21 4 16 Peak Tracking Total 7 | . 4 2 7 Tactical Retreats 2 | . 1 . 1 Traps | -11 -10 -10 -8 ------- Run | Yrd Mat Sub Mat Traps Triggered 6 | . 1 . 5 Indirectly . | . . . . Trap Hack Attempts . | . . . . Triggered . | . . . . Disarmed . | . . . . Reprogrammed . | . . . . Reused . | . . . . Traps Extracted . | . . . . Installed . | . . . . Triggered . | . . . . Machines | -11 -10 -10 -8 ---------- Run | Yrd Mat Sub Mat Machines Disabled 4 | . 1 . 3 Max in Single Turn 1 | . 1 . 1 Machines Repaired . | . . . . Machines Dismantled . | . . . . Machines Sabotaged . | . . . . Overloaded Fab Kills . | . . . . Hacking | -11 -10 -10 -8 --------- Run | Yrd Mat Sub Mat Machines Accessed 11 | . 7 . 4 Terminals 9 | . 5 . 4 Fabricators . | . . . . Repair Stations . | . . . . Recycling Units 2 | . 2 . . Scanalyzers . | . . . . Garrison Access . | . . . . Total Hacks 33 | . 21 . 12 Successful 15 | . 9 . 6 Failed 18 | . 12 . 6 Catastrophic 4 | . 3 . 1 Database Lockouts . | . . . . Manual . | . . . . Terminals 29 | . 17 . 12 Fabricators . | . . . . Repair Stations . | . . . . Recycling Units 4 | . 4 . . Scanalyzers . | . . . . Garrison Access . | . . . . Terminal Hacks 13 | . 7 . 6 Record 1 | . . . 1 Robot Analysis 1 | . 1 . . Branch Access Points 1 | . . . 1 Alert Level 4 | . 2 . 2 Unreport Threat 1 | . 1 . . Locate Traps 1 | . 1 . . Investigation Status 1 | . . . 1 Registered Prototypes 2 | . 1 . 1 Zone Layout 1 | . 1 . . Fabricator Hacks . | . . . . Repair Station Hacks . | . . . . Recycling Unit Hacks 2 | . 2 . . Report Inventory 1 | . 1 . . Retrieve Components 1 | . 1 . . Scanalyzer . | . . . . Garrison Access Hacks . | . . . . Unauthorized Hacks . | . . . . Terminals . | . . . . Fabricators . | . . . . Repair Stations . | . . . . Recycling Units . | . . . . Scanalyzers . | . . . . Garrison Access . | . . . . Data Cores Recovered 1 | . 1 . . Used 1 | . 1 . . Hacking Detections 10 | . 6 . 4 Full Trace Events 3 | . 2 . 1 Feedback Events . | . . . . Feedback Blocked . | . . . . Robot Schematics Acquired . | . . . . Robots Built . | . . . . Authchips . | . . . . Time . | . . . . Total Robot Build Rating . | . . . . Part Schematics Acquired . | . . . . Parts Built . | . . . . Authchips . | . . . . Time . | . . . . Total Part Build Rating . | . . . . Parts Repaired . | . . . . Time . | . . . . Parts Recycled . | . . . . Recycled Matter . | . . . . Retrieved Matter . | . . . . Retrieved Components 4 | . 4 . . Parts Scanalyzed . | . . . . Part Schematics Acquired . | . . . . Parts Damaged . | . . . . Bothacking | -11 -10 -10 -8 ------------ Run | Yrd Mat Sub Mat Used RIF Installer . | . . . . Robots Hacked . | . . . . Non-combat . | . . . . Combat . | . . . . Robot Hacks Applied . | . . . . Relay Couplers Released . | . . . . Fabnet Peak Effective % . | . . . . Robots Rewired . | . . . . Allies Hacked . | . . . . Hacks Repelled . | . . . . Allies | -11 -10 -10 -8 -------- Run | Yrd Mat Sub Mat Total Allies . | . . . . Largest Group . | . . . . Highest-Rated Group . | . . . . Highest-Rated Ally . | . . . . Total Orders . | . . . . Ally Attacks . | . . . . Total Damage . | . . . . Kills . | . . . . Allies Corrupted . | . . . . Allies Melted . | . . . . Intel | -11 -10 -10 -8 ------- Run | Yrd Mat Sub Mat Active Infowar (turns) 541 | . . . 541 Sensors 541 | . . . 541 Robot Analysis Total 1 | . 1 . . Derelict Logs Recovered . | . . . . Drone Launches . | . . . . Drone Recoveries . | . . . . Exploration | -11 -10 -10 -8 ------------- Run | Yrd Mat Sub Mat Turns Passed 1926 | 97 664 433 732 Spaces Moved 1248 | 70 423 369 386 Core 7 | 5 1 . 1 Treads . | . . . . Legs . | . . . . Wheels 839 | 65 371 369 34 Hover 402 | . 51 . 351 Flight . | . . . . Fastest Speed 50 | 50 80 90 100 Average Speed 101 | 80 90 97 120 Slowest Speed 350 | 100 250 120 350 Overloaded Moves . | . . . . Propulsion Burnouts . | . . . . Robots Hopped . | . . . . Potential Cave-ins . | . . . . Cave-ins Triggered . | . . . . Exploration Rate (%) 33 | 4 64 23 43 Regions Visited 3 Branch Regions 1 Pre-discovered Areas . | . . . . Known Exits Taken . | . . . . Unknown Exits Taken 3 | 1 1 1 . Scrap Searched . | . . . . Spaces Dug . | . . . . Terrain Destroyed 13 | . . . 13 Melee . | . . . . Projectile 13 | . . . 13 AOE . | . . . . Terrain Rammed . | . . . . Walls Destroyed . | . . . . Machines Disabled . | . . . . Actions | -11 -10 -10 -8 --------- Run | Yrd Mat Sub Mat Total 1698 | 94 609 420 575 Wait 207 | 2 99 27 79 Move 1245 | 69 422 368 386 Hop . | . . . . Pick Up 43 | 9 12 5 17 Fast Attach 16 | . 9 . 7 Attach 22 | 6 1 4 11 Detach . | . . . . Swap 22 | . 3 1 18 Drop 32 | . 13 1 18 Fire 109 | 8 50 12 39 Melee 2 | . . 2 . Ram . | . . . . Kick . | . . . . Crush . | . . . . Escape Stasis . | . . . . Rewire . | . . . . Trap . | . . . . Miscellaneous . | . . . . Route ------- -11/Scrapyard -10/Materials (discovered 3 exits: [*Mat x2] / [*Sub]) -10/Subcaves (discovered 2 exits: *Mat x2) -8/Materials (discovered 1 exit: [*Fac]) History --------- Turn | Location | Event 44 | -11/Scrapyard | Discovered new exit (range 16) 98 | -11/Scrapyard | Entered Materials 318 | -10/Materials | Build established: Mutant 566 | -10/Materials | Discovered new exit (range 15) 687 | -10/Materials | Discovered new exit (range 15) 735 | -10/Materials | Discovered new exit (range 16) 762 | -10/Materials | Entered Subcaves 763 | -10/Subcaves | Approached by a straggling Scientist 854 | -10/Subcaves | Discovered new exit (range 5) 914 | -10/Subcaves | Core integrity fell below 50% 1068 | -10/Subcaves | Discovered new exit (range 16) 1195 | -10/Subcaves | Entered Materials 1195 | -8/Materials | Evolved 4 slots: Propulsion x1, Utility x2, Weapon x1 1640 | -8/Materials | Build established: Scavenger-Tank 1811 | -8/Materials | Discovered new exit (range 16) 1907 | -8/Materials | Core integrity fell below 50% 1927 | -8/Materials | Self-destructed Last Messages --------------- 01912_ Imp. Signal Interpreter temporarily disabled. 01912_ Y-45 Defender suffers critical hit (Destroy). 01912_ Destroyed Lgt. Treads. 01912_ Imp. Hover Unit destroyed. 01914_ Critical hit (Burn: +37). 01915_ Enh. Autogun destroyed. 01916_ Hrd. Medium Armor Plating destroyed. 01916_ Critical hit (Burn: +37). 01916_ Imp. Hover Unit destroyed. 01921_ Critical hit (Burn: +37). 01924_ Y-45 Defender destroyed. 01924_ Emergency Access malfunctions. 01926_ Enh. Autogun destroyed. 01927_ Overheating: EMP Blaster damaged (-4). 01927_ Overheating: Med. Storage Unit damaged (-89). 01927_ Overheating: Hacking Suite damaged (-2). 01927_ EMP Blaster destroyed. Map ----- +----------------------------------------------------+ | ???#??????????# """" """" # | | ??????????????# """" """" # | | ??????????????# # | | ??????????????# [ ! # | | ?????????????# # | | ????????????############## | | ????????????????????????? | | #???????????????????????? | | ? #???????????????????????? | | ?? #???????????????????????? | | ?? #???????????????????????? | | ???#???????????????????????? | | ???????????????????????????? | | ???????????????????????????? | | ???????????????????????????? | | ???????????????????????????? | | ???????????????????????????? | | ???????????????????????????? | | ???????????????????????????? | | ???????????????????????????? | | ???????????????????????????? | | ???????????????????????????? | | ???????????????????????????? | | ??????????????#############? | | ??????????????# ! g *#? | | ??????????????# ^ g @#? | | ??????????????# " """" #? | | ??????????????# """""" g%[# | | ??????????????# """^ Y*# | | ??????????????# g [%!#? | | ??????????????###+#######/#? | | ################ #?????#[#? | | #?????# #? | | ########## ##### #?????#/#? | | ?????????#+#???# #?????? ?? | | ???????????????# #??????%?? | | ???????????????# #??????%?? | | ???????????????# ??????%?? | | ???????????????# ##?????"?? | | ???????????????# #??????"?? | | ???????????????# #????????? | | ##+#??????????? ????????? | | ???? ????????? | | ???? ????????? | | ##+## #??????? ????????? | | ???????????????# #????????? | | ???????????????? ?????????? | | ???????????????????????????? | | ???????????????????????????? | | ???????????????????????????? | +----------------------------------------------------+ Best States ------------- Heat Dissipation 31 Energy Generation 14 Energy Capacity 250 Matter Stores 300 Matter Capacity 300 Sight Range 16 Robot Scan Range 15 Terrain Scan Density 10 Armor Coverage 225 Evasion (%) 44 Targeting Accuracy 5 Offensive Hacking 10 Authchip Count 1 Item Schematics ----------------- None Robot Schematics ------------------ None Fabricated ------------ Nothing Repaired ---------- Nothing Alien Tech Used ----------------- None Achievements -------------- None Challenges ------------ None Game ------ Seed AerolevExplosiveCalibrator Manual? 0 Play Time 00:39:09 Cumulative 16.4 hours Start 2025.05.15 @ 00:03:13 End 2025.05.15 @ 00:39:27 Sessions 1 Manual Loads 0 Difficulty Rogue Special Mode None Game No. 12 Rogue 12 Adventurer 0 Explorer 0 Win Type - Total 0 Types 0/0/0/0/0/0/0/0/0/0 Lore% 25 Gallery% 18 Achievement% 19 Wizard Run 0 Options --------- Layout 1 ASCII 0 Keyboard 0 Movement Mouse Keybinds 0 Fullscreen 1 Font 24/Smallcaps Map View 50x35 Zoom Use 0% Tactical HUD 1 Map Filters NONE Filters NONE Steam 1 RUN: 5249291a-2f47-40c4-b3ee-4f8409f2baed